bitfinex-derivatives/quotes_ETHF0:USTF0_20250616
["timestamp","ask_amount","ask_price","bid_price","bid_amount"]
[1750104627618,3.2078,2645.8,2645.7,0.75564]
[1750104629723,3.96342,2645.8,2645.7,2.00654]
[1750104630120,0.75565,2645.7,2645.6,0.82304406]
[1750104630626,8.20897716,2645.7,2645.6,0.06737406]
[1750104631025,8.20897716,2645.7,2645.6,0.82304406]
[1750104631226,8.20897716,2645.7,2645.6,0.06737406]
[1750104631816,0.75573,2645.4,2645.3,0.75575]
[1750104632020,3.96353,2645.4,2645.3,0.75575]
[1750104632820,3.96353,2645.4,2645.1,3.02474173]
[1750104632821,0.75579,2645.2,2645.1,3.02474173]
[1750104633027,0.75578,2645.3,2645.2,0.75577]
[1750104633230,3.2078,2645.4,2645.3,0.75576]
[1750104634226,3.96353,2645.4,2645.3,0.75576]
[1750104634530,3.2078,2645.4,2645.3,0.75576]
[1750104635028,3.96353,2645.4,2645.3,0.75576]
[1750104636825,0.75576,2645.3,2645.2,0.82314406]
[1750104637018,3.96355,2645.4,2645.3,0.75576]
[1750104637224,0.75568,2645.6,2645.5,0.7557]
[1750104637724,3.2078,2645.7,2645.6,0.75567]
[1750104637926,3.96345,2645.7,2645.6,0.75567]
[1750104638830,3.2078,2645.7,2645.4,1.50396173]
[1750104639031,0.7557,2645.5,2645.4,2.25966173]
[1750104639230,0.75573,2645.4,2645.3,2.25408657]
[1750104639436,0.75576,2645.3,2645.2,0.06737406]
[1750104639635,0.75576,2645.3,2645.2,0.82316406]
[1750104640032,0.75576,2645.3,2645.2,0.06737406]
[1750104640830,2.82516,2645.3,2645.2,0.06737406]
[1750104641830,1.88955,2645.1,2644.7,0.75591]
[1750104642033,0.75593,2644.8,2644.7,0.75591]
[1750104642431,0.7559,2644.9,2644.8,0.75588]
[1750104642624,3.96366,2645.0,2644.9,0.75587]
[1750104643226,3.96366,2645.0,2644.8,0.75588]
[1750104643227,0.75591,2644.9,2644.8,0.75588]
[1750104643634,3.96366,2645.0,2644.9,0.75588]
[1750104643833,3.2078,2645.0,2644.9,0.75588]
[1750104644033,3.96365,2645.0,2644.9,0.75588]
[1750104646528,3.2078,2645.0,2644.9,0.75588]
[1750104646932,3.2078,2645.0,2644.7,1.34177183]
[1750104647233,0.75591,2644.8,2644.7,0.76161183]
[1750104647829,0.7559,2644.9,2644.8,0.75588]
[1750104648133,10.66112716,2645.0,2644.7,0.00567183]
[1750104648134,3.2078,2645.0,2644.9,0.75588]
[1750104648526,3.2078,2645.0,2644.7,1.89549183]
[1750104648527,0.75591,2644.8,2644.7,0.00567183]
[1750104648727,11.41699716,2645.0,2644.9,0.75588]
[1750104649036,3.96367,2645.0,2644.9,0.75588]
[1750104649532,3.2078,2645.0,2644.9,0.75588]
[1750104650334,3.2078,2645.0,2644.9,0.82325406]
[1750104652533,0.00567183,2645.2,2645.1,0.75582]
[1750104652731,1.55639,2645.6,2645.1,3.2078]
[1750104652931,0.7556,2645.9,2645.8,0.75562]
[1750104653329,0.75563,2645.8,2645.7,0.75562]
[1750104654234,0.80337183,2646.0,2645.9,0.75559]
[1750104654441,0.00567183,2646.0,2645.9,0.75559]
[1750104655339,0.75559,2645.9,2645.8,0.75561]
[1750104656035,8.21458899,2646.0,2645.9,0.75559]
[1750104656236,0.7556,2645.9,2645.8,0.7556]
[1750104657239,0.75565,2645.8,2645.7,0.75564]
[1750104657637,0.75561,2645.9,2645.8,0.75561]
[1750104658133,0.75564,2645.8,2645.7,0.75562]
[1750104659335,0.75561,2645.9,2645.8,0.7556]
[1750104660536,3.73538635,2648.5,2645.8,73.32745432]
[1750104660839,0.38537538,2648.6,2647.9,9.34086716]
[1750104660840,3.2078,2648.3,2647.9,9.34086716]
[1750104661037,7.45332716,2648.7,2648.0,4.462]
[1750104661244,3.2078,2648.3,2647.6,4.809]
[1750104661538,4.08128921,2648.6,2647.7,0.00567183]
[1750104661539,0.00567183,2648.2,2647.7,0.00567183]
[1750104661730,0.00567183,2648.2,2647.7,6.67367183]
[1750104661931,0.00567183,2648.2,2647.8,0.75503]
[1750104662143,1.59323183,2648.2,2647.9,0.75502]
[1750104662346,0.755,2648.0,2647.8,0.75504]
[1750104662533,2.1761,2648.1,2647.7,0.00567183]
[1750104662735,2.93107,2648.1,2647.8,0.75503]
[1750104662936,2.1761,2648.1,2647.7,0.00567183]
[1750104663135,2.1761,2648.1,2647.9,0.755]
[1750104663337,2.1761,2648.1,2647.8,0.75503]
[1750104663539,0.75501,2648.0,2647.7,0.00567183]
[1750104663837,0.75501,2648.0,2647.8,0.75504]
[1750104664038,2.93108,2648.1,2647.9,0.75501]
[1750104664344,2.93108,2648.1,2647.7,0.00567183]
[1750104664739,2.93108,2648.1,2647.9,0.75502]
[1750104665336,2.93108,2648.1,2647.7,0.00567183]
[1750104665337,0.75505,2647.8,2647.7,0.00567183]
[1750104665535,0.75504,2647.9,2647.7,0.76075183]
[1750104665736,1.2374,2647.8,2647.7,0.76075183]
[1750104665936,0.827,2648.1,2647.7,0.00567183]
[1750104666235,0.75505,2647.8,2647.7,0.76075183]
[1750104666640,0.827,2648.1,2647.7,0.76075183]
[1750104666641,0.75504,2647.9,2647.7,0.76075183]
[1750104666842,0.75504,2647.9,2647.7,0.00567183]
[1750104667142,0.75501,2648.0,2647.8,0.75505]
[1750104667346,0.75502,2647.9,2647.7,0.76073183]
[1750104667643,1.2374,2648.0,2647.7,0.76073183]
[1750104667644,1.2374,2648.0,2647.8,0.75503]
[1750104667844,0.75502,2647.9,2647.8,0.75503]
[1750104668639,0.75502,2647.9,2647.7,0.76073183]
[1750104669040,0.75502,2647.9,2647.8,0.75505]
[1750104669240,1.99241,2648.0,2647.8,0.75505]
[1750104669435,0.75504,2647.9,2647.7,0.76074183]
[1750104669838,0.75504,2647.9,2647.8,0.75505]
[1750104670438,0.75505,2647.8,2647.7,0.76073183]
[1750104670843,0.75503,2647.9,2647.8,0.75504]
[1750104671644,0.75502,2647.9,2647.7,0.00567183]
[1750104671844,0.75505,2647.8,2647.7,0.76074183]
[1750104672252,0.75505,2647.8,2647.7,0.00567183]
[1750104674644,8.20837716,2647.8,2647.7,0.00567183]
[1750104675040,0.75505,2647.8,2647.7,0.00567183]
[1750104676344,0.75504,2647.8,2647.7,0.00567183]
[1750104678246,0.827,2648.1,2647.7,0.00567183]
[1750104678445,0.75499,2648.0,2647.9,0.75501]
[1750104678650,0.75499,2648.0,2647.9,0.82238406]
[1750104678951,0.75499,2648.0,2647.9,0.06737406]
[1750104679747,0.75501,2647.9,2647.8,0.75503]
[1750104680050,0.75501,2647.9,2647.8,2.01353]
[1750104680447,0.827,2648.1,2647.8,2.01353]
[1750104680642,0.75501,2647.9,2647.8,1.2585]
[1750104681552,0.75501,2647.9,2647.8,2.01354]
[1750104683150,0.75501,2647.9,2647.8,1.2585]
[1750104684153,0.75501,2647.9,2647.7,0.82809589]
[1750104684154,0.75504,2647.8,2647.7,0.07304589]
[1750104684448,0.75504,2647.8,2645.9,7.4040462]
[1750104684449,0.75527,2647.0,2646.9,4.32442973]
[1750104684645,0.75527,2647.0,2646.9,3.2078]
[1750104687857,0.75527,2647.0,2646.9,3.9631]
[1750104688157,0.75527,2647.0,2646.9,3.96309]
[1750104688348,0.75527,2647.0,2646.9,6.3840664]
[1750104688748,0.75527,2647.0,2646.9,5.6287764]
[1750104689656,0.75527,2647.0,2646.9,3.2078]
[1750104692959,0.75527,2647.0,2646.9,4.33618817]
[1750104693171,0.75527,2647.0,2646.9,1.12838817]
[1750104693349,0.7553,2646.9,2646.8,1.48966354]
[1750104693556,0.75533,2646.8,2646.7,1.49533537]
[1750104693752,0.75533,2646.8,2646.7,0.00567183]
[1750104696859,0.75533,2646.8,2646.7,0.76103183]
[1750104697064,0.06737406,2646.9,2646.8,0.75533]
[1750104697258,0.06737406,2646.9,2646.8,1.98543]
[1750104697259,0.82267406,2646.9,2646.8,1.98543]
[1750104697458,0.82267406,2646.9,2646.8,3.11382728]
[1750104697659,0.06737406,2646.9,2646.8,3.11382728]
[1750104698060,0.82267406,2646.9,2646.8,3.11382728]
[1750104698666,0.82267406,2646.9,2646.8,1.98543]
[1750104700067,0.82267406,2646.9,2646.8,1.2301]
[1750104701458,0.82267406,2646.9,2646.8,2.35732509]
[1750104702165,0.82267406,2646.9,2646.8,3.11265509]
[1750104702369,0.82267406,2646.9,2646.8,1.98543]
[1750104703761,0.82267406,2646.9,2646.8,1.2301]
[1750104704768,0.82267406,2646.9,2646.7,1.49533537]
[1750104704769,0.75533,2646.8,2646.7,1.49533537]
[1750104705169,0.75533,2646.8,2646.7,2.25069537]
[1750104705672,0.75533,2646.8,2646.7,2.75183537]
[1750104706565,0.75533,2646.8,2646.7,1.49533537]
[1750104706873,0.75533,2646.8,2646.7,0.00567183]
[1750104707063,2.07623,2646.8,2646.7,0.00567183]
[1750104707660,9.52955716,2646.8,2646.7,0.00567183]
[1750104707863,15.66257716,2646.8,2646.4,1.12753063]
[1750104708067,0.75544,2646.4,2646.3,1.12753063]
[1750104708360,0.75547,2646.3,2646.2,1.12753063]
[1750104708866,0.7555,2646.2,2646.1,4.33533063]
[1750104712565,0.7555,2646.2,2646.1,3.2078]
[1750104713167,0.7555,2646.3,2646.2,0.75548]
[1750104713470,0.7555,2646.3,2646.1,10.66112716]
[1750104713471,0.7555,2646.2,2646.1,14.1877007]
[1750104713772,0.7555,2646.2,2646.1,11.41663716]
[1750104714373,0.7555,2646.2,2646.1,13.67406385]
[1750104714873,0.7555,2646.2,2646.1,12.91855385]
[1750104715073,0.7555,2646.2,2646.1,3.2078]
[1750104715769,0.7555,2646.2,2646.1,3.96333]
[1750104716366,0.7555,2646.2,2646.1,3.2078]
[1750104716874,0.7555,2646.2,2646.1,3.96333]
[1750104717074,0.7555,2646.2,2646.1,3.2078]
[1750104718572,0.7555,2646.2,2646.1,4.71334328]
[1750104719965,0.7555,2646.2,2646.1,5.46887328]
[1750104720165,0.7555,2646.2,2646.1,4.71334328]
[1750104720374,0.7555,2646.2,2646.1,5.46887328]
[1750104720977,0.7555,2646.2,2646.1,3.2078]
[1750104721171,0.7555,2646.2,2646.1,4.71335985]
[1750104723276,0.7555,2646.2,2646.1,1.50555985]
[1750104723577,0.75553,2646.1,2646.0,1.83e-06]
[1750104723775,2.01673,2646.1,2646.0,1.83e-06]
[1750104725183,0.75553,2646.1,2646.0,1.83e-06]
[1750104726269,0.75553,2646.1,2646.0,0.75556183]
[1750104726476,0.7555,2646.3,2646.2,0.75548]
[1750104726677,0.7555,2646.3,2646.2,8.20880716]
[1750104727080,0.7555,2646.3,2646.2,11.06826701]
[1750104727682,1.88805,2647.2,2646.2,51.04432701]
[1750104727881,3.0388,2647.6,2647.0,7.45332716]
[1750104728185,0.75527,2647.0,2646.9,1.50451706]
[1750104728388,0.75527,2647.0,2646.9,2.85791703]
[1750104728590,0.7553,2646.9,2646.8,2.32141703]
[1750104728886,0.7553,2646.9,2646.8,3.07674703]
[1750104729485,0.7553,2646.9,2646.8,2.32141703]
[1750104730079,0.7553,2646.9,2646.8,3.07674703]
[1750104730581,0.7553,2646.9,2646.8,2.32141703]
[1750104732388,0.7553,2646.9,2646.8,3.07674703]
[1750104732786,0.7553,2646.9,2646.8,3.61171703]
[1750104735189,0.7553,2646.9,2646.8,4.36704703]
[1750104737183,0.7553,2646.9,2646.8,3.61171703]
[1750104737482,0.7553,2646.9,2646.8,2.32141703]
[1750104737684,0.75533,2646.8,2646.7,4.71181703]
[1750104738288,0.75533,2646.8,2646.7,5.46717703]
[1750104738791,0.75533,2646.8,2646.7,6.75457703]
[1750104740289,1.89380183,2647.1,2646.7,5.99921703]
[1750104740492,0.75532,2646.9,2646.8,3.54670703]
[1750104741700,0.75532,2646.9,2646.8,4.37560703]
[1750104743992,0.75532,2646.9,2646.8,3.62031703]
[1750104744300,0.75532,2646.9,2646.7,32.03111387]
[1750104744301,0.75533,2646.8,2646.7,28.83719109]
[1750104745197,0.75533,2646.8,2646.7,29.59255109]
[1750104747299,0.75533,2646.8,2646.7,4.77919109]
[1750104747592,1.88846,2646.7,2646.3,1.50401703]
[1750104747898,0.75548,2646.3,2646.2,1.50401703]
[1750104748198,0.75551,2646.2,2646.1,4.71181703]
[1750104748400,0.75551,2646.2,2646.1,5.46735703]
[1750104749602,0.75551,2646.2,2646.1,9.40896684]
[1750104749795,0.75551,2646.2,2646.1,10.64966684]
[1750104750299,0.75551,2646.2,2646.1,9.14564981]
[1750104750498,0.75551,2646.2,2646.1,5.95268954]
[1750104750899,0.75551,2646.2,2646.1,6.70822954]
[1750104751200,0.75551,2646.2,2646.1,5.95268954]
[1750104751399,0.75551,2646.2,2646.1,4.71198954]
[1750104751601,0.75551,2646.2,2646.1,5.46752954]
[1750104751895,0.75551,2646.2,2646.1,3.2078]
[1750104752601,0.75551,2646.2,2646.1,3.96334]
[1750104752809,0.7555,2646.3,2646.2,0.75548]
[1750104753296,0.75542,2646.6,2646.5,0.75542]
[1750104753495,0.75536,2646.8,2646.7,0.75534]
[1750104753699,0.75536,2646.8,2646.7,4.76432387]
[1750104753899,0.75536,2646.8,2646.7,6.26862057]
[1750104754204,3.2078,2646.9,2646.8,0.75534]
[1750104754205,0.75532,2646.9,2646.8,0.75534]
[1750104754395,0.75532,2646.9,2646.8,2.25952837]
[1750104754797,0.76095183,2647.1,2647.0,0.75528]
[1750104755101,0.00567183,2647.1,2647.0,2.26012564]
[1750104755296,0.00567183,2647.1,2647.0,0.75528]
[1750104755604,0.76092183,2647.1,2647.0,3.01270669]
[1750104755799,0.00567183,2647.1,2647.0,3.01270669]
[1750104756605,0.00567183,2647.1,2647.0,7.30428]
[1750104757806,0.00567183,2647.1,2647.0,10.31418225]
[1750104760109,0.75508,2647.7,2647.6,0.75511]
[1750104760307,0.75506,2647.9,2647.8,0.75503]
[1750104760714,0.75506,2647.9,2647.8,2.25895635]
[1750104760904,0.75506,2647.9,2647.8,1.50392635]
[1750104761305,0.75505,2647.8,2647.7,2.25898635]
[1750104762111,0.75505,2647.8,2647.7,1.50392635]
[1750104762409,0.75505,2647.8,2647.7,2.25900635]
[1750104763308,0.75505,2647.8,2647.7,0.75508]
[1750104765806,0.75508,2647.7,2647.6,26.29270818]
[1750104766004,0.75508,2647.7,2647.6,24.78878183]
[1750104766210,0.75508,2647.7,2647.6,26.29270818]
[1750104766407,3.21347183,2648.1,2647.6,24.78878183]
[1750104766727,271.957,2652.2,2649.2,0.75466]
[1750104767014,1.27288154,3749.0,2651.4,7.45094096]
[1750104767015,3.2078,2651.9,2651.4,7.45094096]
[1750104767212,1.287,2653.2,2651.8,8.95018417]
[1750104767513,5.656,2653.1,2652.7,7.45094096]
[1750104767704,1.287,2653.8,2653.0,3.2078]
[1750104767900,1.287,2653.8,2653.7,3.2078]
[1750104768311,1.287,2653.8,2653.7,5.20261418]
[1750104768506,10.4858,2655.6,2654.0,3.2078]
[1750104768814,1.3054,2654.8,2654.7,3.2078]
[1750104769002,20.49791264,2654.8,2653.7,3.2078]
[1750104769208,8.70671264,2654.3,2653.8,1.45406574]
[1750104769408,1.3054,2654.2,2653.8,0.00566006]
[1750104769616,40.8,2654.1,2653.8,0.00566006]
[1750104769912,8.8684,2654.0,2653.8,0.00566006]
[1750104770407,13.8684,2654.0,2653.8,0.00566006]
[1750104770616,7.563,2653.9,2653.8,0.00566006]
[1750104770811,8.8684,2653.9,2653.7,3.2078]
[1750104771207,8.8684,2653.9,2653.1,0.35326019]
[1750104771208,13.8684,2653.9,2653.1,3.2078]
[1750104771504,3.2078,2653.4,2652.7,3.2078]
[1750104771707,1.3054,2653.3,2652.8,1.44131231]
[1750104771908,8.31653,2653.2,2652.9,1.44131231]
[1750104772109,7.563,2653.2,2652.8,0.00566006]
[1750104772405,7.563,2653.2,2652.0,1.47981818]
[1750104772406,9.97091264,2653.1,2652.3,3.2078]
[1750104772608,9.97091264,2653.1,2652.4,1.44011343]
[1750104772609,3.2078,2652.9,2652.4,1.44011343]
[1750104772913,1.2642,2652.8,2652.3,3.2078]
[1750104773215,7.56,2652.7,2652.3,3.2078]
[1750104773410,1.2642,2652.6,2652.3,3.2078]
[1750104776208,1.2642,2652.6,2652.3,3.96157]
[1750104777513,1.2642,2652.6,2652.4,0.75375]
[1750104778118,1.2642,2652.6,2652.5,0.75372]
[1750104778306,1.2642,2652.6,2652.5,9.46043264]
[1750104778711,7.56466006,2652.8,2652.7,0.75367]
[1750104779018,7.56466006,2652.8,2652.7,3.96147]
[1750104779218,6e-08,2652.8,2652.7,8.96147]
[1750104779520,1.88282,2654.7,2652.7,8.96147]
[1750104779521,1.2843,2653.8,2653.0,1.88396]
[1750104779724,1.2843,2653.8,2653.3,3.2078]
[1750104779916,1.2843,2653.8,2653.7,0.75338]
[1750104780116,8.8423,2653.8,2653.7,0.75338]
[1750104780617,1.2843,2653.8,2653.7,3.96118]
[1750104781013,1.2843,2653.8,2653.7,4.51234824]
[1750104781519,1.2843,2653.8,2653.7,4.51257263]
[1750104781714,1.2843,2653.8,2653.7,3.75918436]
[1750104782120,1.2843,2653.8,2653.7,4.51256436]
[1750104782611,1.2843,2653.8,2653.7,5.94828034]
[1750104782813,0.81666006,2654.0,2653.9,0.75333]
[1750104782814,0.00566006,2654.0,2653.9,0.75333]
[1750104783011,0.00566006,2654.0,2653.9,1.30415085]
[1750104783224,1.25736006,2654.0,2653.9,1.30415085]
[1750104783525,1.25736006,2654.0,2653.9,2.74047589]
[1750104784015,0.00566006,2654.0,2653.9,1.30446257]
[1750104784428,1.3331,2654.7,2653.9,0.55113257]
[1750104784429,0.75317,2654.5,2653.9,0.55113257]
[1750104784716,1.3331,2654.4,2654.3,0.75321]
[1750104784921,1.3331,2654.4,2654.3,3.83690037]
[1750104785215,1.3331,2654.4,2654.3,2.74089623]
[1750104785423,1.3331,2654.4,2654.3,3.83690037]
[1750104785815,1.3331,2654.4,2654.3,3.2857678]
[1750104786019,1.3331,2654.4,2654.3,3.28587381]
[1750104786525,0.00566006,2654.6,2654.5,0.75316]
[1750104786824,0.00566006,2654.6,2654.5,5.39751366]
[1750104787121,0.00566006,2654.6,2654.5,7.58952195]
[1750104787325,0.00566006,2654.6,2654.5,5.39751366]
[1750104787626,0.00566006,2654.6,2654.5,7.65113304]
[1750104788420,0.00566006,2654.6,2654.5,5.45912475]
[1750104788621,0.00566006,2654.6,2654.5,6.00991317]
[1750104789323,0.00566006,2654.6,2654.5,6.00978217]
[1750104790222,0.00566006,2654.6,2654.5,7.45284402]
[1750104790429,0.00566006,2654.6,2654.5,5.25729981]
[1750104790625,0.75879006,2654.6,2654.5,7.45576628]
[1750104791025,0.75879006,2654.6,2654.5,5.25729981]
[1750104791527,8.30979006,2654.6,2654.5,2.04949981]
[1750104791833,13.30979006,2654.6,2654.5,2.04949981]
[1750104792028,13.30979006,2654.6,2654.5,0.55047172]
[1750104792224,13.30979006,2654.6,2654.5,1.92401302]
[1750104792526,13.30979006,2654.6,2654.5,1.92422368]
[1750104793123,0.00566006,2654.6,2654.5,2.67738368]
[1750104793326,0.00566006,2654.6,2654.5,7.89132425]
[1750104793533,0.00566006,2654.6,2654.5,6.04597315]
[1750104793726,0.75879006,2654.6,2654.5,6.04593161]
[1750104793924,0.75879006,2654.6,2654.5,9.04535134]
[1750104794227,0.75879006,2654.6,2654.5,6.04592958]
[1750104794529,0.75313,2654.6,2654.5,2.84078723]
[1750104794728,0.75313,2654.6,2654.5,6.04858571]
[1750104794931,0.75313,2654.6,2654.5,6.06898809]
[1750104795123,2.04683,2654.6,2654.5,6.06898809]
[1750104795332,2.04683,2654.6,2654.5,4.93469638]
[1750104795526,2.04683,2654.6,2654.5,6.07095297]
[1750104796228,0.92642449,2654.6,2654.5,6.07095808]
[1750104796528,5.08713623,2654.7,2654.5,6.07593426]
[1750104796724,5.84023623,2654.7,2654.6,6.5956814]
[1750104796928,5.84023623,2654.7,2654.6,2.86736839]
[1750104797129,10.84023623,2654.7,2654.6,5.8494796]
[1750104797330,10.84023623,2654.7,2654.6,5.84321588]
[1750104797533,10.84023623,2654.7,2654.6,1.94352596]
[1750104797834,10.84023623,2654.7,2654.6,2.85214927]
[1750104798329,10.84023623,2654.7,2654.6,5.08898899]
[1750104798528,10.84023623,2654.7,2654.6,5.08237622]
[1750104798731,10.84023623,2654.7,2654.6,2.8454067]
[1750104798930,10.84023623,2654.7,2654.6,5.08237116]
[1750104799131,10.84023623,2654.7,2654.6,2.84540617]
[1750104799325,10.84023623,2654.7,2654.6,5.08237116]
[1750104799528,39.6682,2654.7,2654.6,2.84540617]
[1750104800435,38.9151,2654.7,2654.6,0.5578945]
[1750104800637,39.6682,2654.7,2654.6,0.5578945]
[1750104801233,39.6682,2654.7,2654.6,2.04910405]
[1750104801835,80.4682,2654.7,2654.6,2.04910405]
[1750104802027,80.4682,2654.7,2654.6,1.67631974]
[1750104803029,80.3702,2654.7,2654.6,1.67631974]
[1750104803237,80.3702,2654.7,2654.6,0.55827479]
[1750104803944,39.5702,2654.7,2654.6,0.55827479]
[1750104804144,0.75313,2654.6,2654.5,4.69900955]
[1750104804339,2.03613,2654.6,2654.5,3.76623726]
[1750104804644,34.59213,2654.6,2654.5,3.76623726]
[1750104805235,34.59213,2654.6,2654.5,5.25981467]
[1750104805637,0.75316,2654.5,2654.4,2.23696499]
[1750104805842,0.75316,2654.5,2654.4,2.7959964]
[1750104806038,0.75316,2654.5,2654.4,2.79599857]
[1750104806244,33.839,2654.6,2654.4,0.55903358]
[1750104806452,33.839,2654.6,2654.5,0.55903358]
[1750104806643,34.59213,2654.6,2654.5,0.55903358]
[1750104807339,34.22483357,2654.6,2654.5,0.55903358]
[1750104808149,39.22483357,2654.6,2654.5,2.24776459]
[1750104808353,41.67950357,2654.6,2654.1,2.98211121]
[1750104808552,0.75324,2654.2,2654.1,2.98211121]
[1750104808855,0.75327,2654.1,2654.0,6.18991121]
[1750104809154,0.75327,2654.1,2654.0,3.2078]
[1750104810048,0.75336,2653.8,2653.7,0.00566006]
[1750104810954,8.08836,2653.8,2653.7,0.00566006]
[1750104813053,0.7535,2653.3,2653.2,3.2078]
[1750104813349,25.8145,2653.3,2653.2,3.2078]
[1750104814955,25.8145,2653.3,2653.0,0.00566006]
[1750104814956,0.75356,2653.1,2653.0,0.00566006]
[1750104816455,0.75356,2653.1,2653.0,1.33066006]
[1750104817756,25.75356,2653.1,2653.0,1.33066006]
[1750104819657,81.42047038,2653.1,2652.8,1.12353824]
[1750104819867,1.88418,2652.7,2652.4,1.12375025]
[1750104820062,0.75373,2652.5,2652.4,1.12375025]
[1750104820267,0.75376,2652.4,2652.3,1.12375025]
[1750104821774,0.75378,2652.3,2652.2,2.41455025]
[1750104821958,25.77178,2652.3,2652.2,2.41455025]
[1750104822158,25.77178,2652.3,2652.2,1.12375025]
[1750104823156,0.75378,2652.3,2652.2,1.12375025]
[1750104823361,7.338,2652.6,2652.2,8.76117038]
[1750104823557,8.0917,2652.6,2652.5,3.2078]
[1750104823766,33.0867,2652.6,2652.5,3.2078]
[1750104824771,25.7507,2652.6,2652.5,3.2078]
[1750104826369,25.7527,2652.6,2652.5,3.2078]
[1750104828572,0.75376,2652.4,2652.3,1.3485]
[1750104829271,0.75376,2652.4,2652.3,2.10228]
[1750104830271,0.75376,2652.4,2652.3,1.3485]
[1750104830568,0.75376,2652.4,2652.3,2.10228]
[1750104831171,0.75375,2652.5,2652.4,0.75375]
[1750104831365,7.338,2652.7,2652.3,2.46974042]
[1750104831565,0.75375,2652.5,2652.4,0.75375]
[1750104831769,0.75375,2652.5,2652.4,2.00985]
[1750104832367,1.88394,2653.1,2652.5,1.88432]
[1750104832571,0.75365,2652.8,2652.7,0.75365]
[1750104834264,0.75365,2652.8,2652.7,1.87489042]
[1750104834465,3.21346006,2653.3,2652.7,5.0]
[1750104834671,0.00566006,2653.3,2653.1,0.75355]
[1750104834868,0.75918006,2653.3,2653.2,1.3646]
[1750104835768,0.00566006,2653.3,2653.2,2.11813]
[1750104836075,0.75336,2653.8,2653.6,0.7534]
[1750104836268,0.75336,2653.8,2653.7,1.2811]
[1750104836869,0.00566006,2654.0,2653.9,0.75331]
[1750104837071,0.00566006,2654.0,2653.9,1.87610073]
[1750104837268,0.00566006,2654.0,2653.9,0.75331]
[1750104837775,0.00566006,2654.0,2653.9,3.96111]
[1750104838173,0.00566006,2654.0,2653.9,5.24221]
[1750104840671,0.75896006,2654.0,2653.9,3.2078]
[1750104840870,0.75896006,2654.0,2653.9,4.7046965]
[1750104841073,0.75896006,2654.0,2653.9,3.2078]
[1750104841376,0.75896006,2654.0,2653.9,4.3301146]
[1750104841978,0.75896006,2654.0,2653.9,3.2078]
[1750104842673,3.76555,2654.7,2653.9,3.2078]
[1750104842674,3.2078,2654.9,2653.9,11.37380038]
[1750104842880,0.75321,2654.4,2654.2,0.75323]
[1750104843180,0.75321,2654.4,2654.2,3.96103]
[1750104843476,0.75322,2654.3,2654.2,3.96103]
[1750104843777,0.75881629,2654.5,2654.3,0.75319]
[1750104843972,0.75319,2654.4,2654.3,0.75319]
[1750104844480,0.75881629,2654.5,2654.3,0.75319]
[1750104844681,0.75319,2654.4,2654.2,3.96103]
[1750104845273,0.75881629,2654.5,2654.3,0.75322]
[1750104845488,0.75319,2654.4,2654.3,0.75322]
[1750104846273,0.75881629,2654.5,2654.2,3.2078]
[1750104846475,0.00563629,2654.5,2654.4,0.75319]
[1750104846671,0.75881629,2654.5,2654.3,0.7532]
[1750104846871,0.75319,2654.4,2654.2,3.96103]
[1750104847274,0.75319,2654.4,2654.3,0.75322]
[1750104848172,0.7532,2654.4,2654.2,3.2078]
[1750104848374,0.7532,2654.4,2654.2,3.96102]
[1750104848577,0.7532,2654.4,2654.2,3.2078]
[1750104848778,0.75322,2654.3,2654.2,3.96104]
[1750104849277,0.75321,2654.4,2654.2,3.96104]
[1750104849466,0.75321,2654.4,2654.3,0.75322]
[1750104851085,0.75322,2654.3,2654.2,3.96102]
[1750104852985,0.7532,2654.4,2654.3,0.7532]
[1750104853481,0.75322,2654.3,2654.2,3.96102]
[1750104853983,0.75321,2654.4,2654.3,0.75321]
[1750104855083,0.00563629,2654.5,2654.4,0.75319]
[1750104855880,3.2078,2654.9,2654.8,0.75307]
[1750104856081,1.57713,2655.0,2654.9,0.75305]
[1750104856274,7.024,2655.1,2655.0,0.75302]
[1750104857286,0.75296,2655.2,2655.1,0.75299]
[1750104860785,0.75301,2655.1,2655.0,0.753]
[1750104860986,3.2078,2655.3,2655.1,0.75298]
[1750104860987,0.75298,2655.2,2655.1,0.75298]
[1750104861284,3.2078,2655.3,2654.9,5.65486647]
[1750104861479,0.75297,2655.2,2655.1,0.75296]
[1750104863093,0.75299,2655.1,2655.0,1.87262718]
[1750104863293,0.75298,2655.2,2655.1,0.75297]
[1750104864189,1.6538,2655.5,2655.1,4.31767718]
[1750104864388,0.75293,2655.3,2655.2,1.12320657]
[1750104864591,0.75293,2655.3,2655.2,1.87616657]
[1750104864788,1.6538,2655.5,2655.2,1.87616657]
[1750104865091,0.75293,2655.3,2655.2,1.87614657]
[1750104865494,0.75292,2655.4,2655.3,0.75291]
[1750104865994,0.75293,2655.3,2655.2,1.87614657]
[1750104866196,0.75293,2655.3,2655.2,0.75294]
[1750104866492,0.75293,2655.3,2655.2,5.08463934]
[1750104866894,0.75293,2655.3,2655.2,3.96074]
[1750104867296,0.75293,2655.3,2655.2,5.08457859]
[1750104867487,1.6538,2655.5,2655.2,5.08457859]
[1750104867688,0.75293,2655.4,2655.3,1.12383859]
[1750104868297,0.75293,2655.3,2655.2,5.08457859]
[1750104868992,0.75293,2655.3,2655.2,4.33163859]
[1750104869193,0.75293,2655.3,2655.2,1.12383859]
[1750104869396,0.75299,2655.1,2655.0,1.12383859]
[1750104869795,0.75302,2655.0,2654.9,4.33728788]
[1750104870403,0.75302,2655.0,2654.9,1.12948788]
[1750104870594,0.75302,2655.0,2654.9,0.00564929]
[1750104870998,2.01882,2655.0,2654.9,0.00564929]
[1750104871299,0.75307,2654.8,2654.7,1.12383859]
[1750104871495,0.7531,2654.7,2654.6,1.12383859]
[1750104871696,2.9185,2654.7,2654.4,1.12383859]
[1750104871895,0.75316,2654.5,2654.4,1.12383859]
[1750104872301,4.80128,2654.7,2654.3,1.4968965]
[1750104872302,0.75319,2654.4,2654.3,1.4968965]
[1750104872505,0.75319,2654.4,2654.3,2.2501165]
[1750104872697,0.75319,2654.4,2654.3,1.4968965]
[1750104873896,0.75322,2654.3,2654.2,4.71034579]
[1750104875296,0.75322,2654.3,2654.2,5.46358579]
[1750104875496,0.75322,2654.3,2654.2,4.71034579]